Cogmind - Beta 10.1 @@@ ROGUE MODE // 2020.10.22 @ 23:42:36 Player: Cog Result: Destroyed by S-43 Plague with Heavy Machine Gun Performance ------------- Evolutions (9) 4500 Regions Visited (30) 6000 Robots Destroyed (206) 1030 Value Destroyed (14867) 14867 Prototype IDs (51) 1020 Alien Tech Used (0) 0 Bonus (13039) 13039 TOTAL SCORE: 40456 Bonus ------- High Alert Combat Kills 1069 Follower Combat Kills 5810 Entered Garrisons 1600 Used RIF Installer 3500 Network Hubs Disabled 200 Aligned with FarCom 300 Met Imprinter 300 Built Enhanced Grunts 300 A7 Reached Mainframe 300 Met R17 at Cetus 500 Met R17 at Research 2000 Friendly Fire -2840 Cogmind --------- Core Integrity 0/1600 Matter 166/300 Energy 99/100 System Corruption 11% Temperature Cool (0) Movement Core (50) Location -1/Access Parts ------- > --- POWER (1) -------- (None) > --- PROPULSION (4) --- (None) > --- UTILITY (18) ----- (None) > --- WEAPON (2) ------- (None) > --- INVENTORY (4) ---- Centrium Leg Advanced Datajack Peak State ------------ > --- POWER ------------ Quantum Reactor > --- PROPULSION ------- Advanced Heavy Treads Improved Antigrav System > --- UTILITY ---------- Large Storage Unit High-capacity Storage Unit High-capacity Storage Unit Improved Targeting Computer Advanced Armor Integrity Analyzer Layered Light Armor Plating Advanced Hacking Suite Improved System Shield Relay Coupler [NC] Relay Coupler [Swarmer] Relay Coupler [Grunt] Relay Coupler [Sentry] Relay Coupler [Sentry] Relay Coupler [Demolisher] Relay Coupler [Hunter] Experimental Reclamation Unit Drone Bay > --- WEAPON ----------- Improved KE Penetrator Advanced Remote Datajack > --- INVENTORY -------- Compact Particle Reactor Medium Storage Unit Layered Light Armor Plating Relay Coupler [NC] Relay Coupler [NC] Relay Coupler [Swarmer] Relay Coupler [Swarmer] Relay Coupler [Brawler] Relay Coupler [Brawler] Relay Coupler [Brawler] Relay Coupler [Duelist] Relay Coupler [Duelist] Relay Coupler [Sentry] Relay Coupler [Sentry] Relay Coupler [Specialist] Relay Coupler [Specialist] Relay Coupler [Hunter] Advanced Drone Bay Compact HERF Cannon Coil Gun Railgun Advanced Remote Datajack Power Sword Power Sword [Rating: 124] Favorites ----------- Power Light Antimatter Reactor Engine Improved Deuterium Engine Power Core Micro Fission Core Reactor Light Antimatter Reactor Propulsion Armored Wheel Treads Advanced Heavy Treads Leg Carbon-fiber Leg Wheel Armored Wheel Hover Unit Improved Antigrav System Flight Unit Field Propulsion Array Utility High-capacity Storage Unit Device Advanced Force Field Storage High-capacity Storage Unit Processor Advanced Target Analyzer Hackware Relay Coupler [NC] Protection Improved Light Armor Plating Weapon Improved Remote Datajack Energy Gun EM Pulse Gun Energy Cannon Compact HERF Cannon Ballistic Gun Improved KE Penetrator Ballistic Cannon Flak Cannon Launcher Mini Grenade Launcher Special Weapon Improved Remote Datajack Slashing Weapon Power Sword Piercing Weapon CR-A16's Pointy Stick Special Melee Weapon Advanced Datajack Build | -11 -10 -10 -10 -9 -8 -7 -7 -7 -7 -6 -6 -6 -6 -6 -5 -5 -5 -5 -5 -5 -5 -4 -4 -3 -3 -3 -3 -2 -2 -1 ------- Run | Scr Mat Min Exi Min Mat Fac Low Low Zio Pro Fac Gar Fac Gar Fac Gar Ext Cet Arc Hub Gar Fac Gar Res Gar Res Gar Res Gar Acc Slots Evolved 18 | . . . . . 4 2 . . . . 2 . . . 2 . . . . . . 2 . 2 . . . 2 . 2 Power . | . . . . . . . . . . . . . . . . . . . . . . . . . . . . . . . Propulsion 2 | . . . . . . . . . . . 1 . . . . . . . . . . . . . . . . . . 1 Utility 16 | . . . . . 4 2 . . . . 1 . . . 2 . . . . . . 2 . 2 . . . 2 . 1 Weapon . | . . . . . . . . . . . . . . . . . . . . . . . . . . . . . . . Parts Attached 585 | . 7 5 1 1 21 32 6 12 15 7 32 40 5 26 9 32 15 19 3 7 46 15 43 15 44 23 20 55 17 12 Power 40 | . 1 . . . 1 1 . 1 . . 6 4 1 . . 1 1 3 . 1 5 3 1 1 3 2 . 3 1 . Engine 14 | . 1 . . . . 1 . 1 . . 6 3 1 . . . 1 . . . . . . . . . . . . . Core 8 | . . . . . 1 . . . . . . . . . . . . . . 1 5 1 . . . . . . . . Reactor 18 | . . . . . . . . . . . . 1 . . . 1 . 3 . . . 2 1 1 3 2 . 3 1 . Propulsion 69 | . 2 1 . . 5 4 3 2 2 . 7 7 . 2 3 2 . 5 . . 4 . 3 . 5 2 1 5 2 2 Treads 17 | . . . . . 1 2 1 2 . . 3 . . . . . . 1 . . . . . . 4 2 . . 1 . Leg 22 | . . 1 . . 2 . . . 2 . 2 7 . 2 1 . . . . . . . . . . . . 4 1 . Wheel 27 | . 2 . . . 2 2 2 . . . 2 . . . 2 2 . 4 . . 4 . 3 . 1 . . 1 . . Hover 1 | . . . . . . . . . . . . . . . . . . . . . . . . . . . 1 . . . Flight 2 | . . . . . . . . . . . . . . . . . . . . . . . . . . . . . . 2 Utility 218 | . 2 . . . 8 10 1 2 11 2 11 10 3 9 4 13 9 5 2 4 15 7 13 8 15 11 9 24 1 9 Device 55 | . . . . . 5 2 1 1 5 1 6 5 . . 1 . 1 1 . . 3 1 4 1 2 1 1 6 . 7 Storage 17 | . 1 . . . . 1 . . 1 . 1 . . . . 1 . 1 . 2 1 . . . 3 1 . 4 . . Processor 21 | . 1 . . . 1 4 . . 4 . 2 . . . . . . . . . 3 2 . . 1 1 . 2 . . Hackware 84 | . . . . . 1 1 . . 1 . . 4 3 6 2 10 5 . 2 1 4 3 8 5 6 5 6 8 1 2 Protection 41 | . . . . . 1 2 . 1 . 1 2 1 . 3 1 2 3 3 . 1 4 1 1 2 3 3 2 4 . . Artifact . | . . . . . . . . . . . . . . . . . . . . . . . . . . . . . . . Weapon 258 | . 2 4 1 1 7 17 2 7 2 5 8 19 1 15 2 16 5 6 1 2 22 5 26 6 21 8 10 23 13 1 Energy Gun 66 | . 1 2 . . 3 4 . 2 . 1 1 7 . 7 . 7 2 1 . 1 8 . 6 2 5 . . 2 4 . Energy Cannon 19 | . . . . . . 5 . 1 . . . . . . . . . . . 1 2 . . . . 2 3 5 . . Ballistic Gun 39 | . . . . . 1 . . . . . . . . 1 . 1 . 3 . . 6 2 7 1 6 . 2 6 3 . Ballistic Cannon 9 | . . . . . . . . 1 . . 1 . . . . . 1 . . . . . 3 1 2 . . . . . Launcher 34 | . 1 2 1 1 1 5 2 3 . 2 2 5 . 3 . 1 . 2 . . 2 . 1 . . . . . . . Special Weapon 49 | . . . . . . . . . . . . 5 1 1 1 4 2 . 1 . 4 3 8 1 4 3 1 6 3 1 Impact Weapon . | . . . . . . . . . . . . . . . . . . . . . . . . . . . . . . . Slashing Weapon 31 | . . . . . 2 3 . . 2 2 3 . . . . . . . . . . . . 1 4 3 4 4 3 . Piercing Weapon 10 | . . . . . . . . . . . 1 2 . 3 1 3 . . . . . . . . . . . . . . Special Melee Weapon 1 | . . . . . . . . . . . . . . . . . . . . . . . 1 . . . . . . . Unidentified Prototypes 24 | . . . . . 2 1 . . 7 . . . 1 . . . . 6 . . . 2 . . . 1 . 4 . . Parts Lost 147 | . . 1 . . 2 7 1 1 . 3 20 8 . 4 . 4 3 1 . 3 13 . 10 1 19 1 3 18 12 12 Power 10 | . . . . . . . . . . . 3 . . . . 1 1 . . 1 1 . . . 2 . . 1 . . Propulsion 35 | . . 1 . . 1 3 1 1 . . 6 2 . 2 . 1 . 1 . . 3 . 3 1 4 . . 2 1 2 Utility 64 | . . . . . . 1 . . . 1 7 4 . . . 1 1 . . 1 7 . 3 . 8 . 2 10 9 9 Weapon 38 | . . . . . 1 3 . . . 2 4 2 . 2 . 1 1 . . 1 2 . 4 . 5 1 1 5 2 1 Highest Loss Streak 17 | . . 1 . . 2 3 1 1 . 3 17 3 . 1 . 3 2 1 . 2 8 . 8 1 8 1 1 17 11 11 Average Slot Usage (%) 91 | . 81 94 100 100 94 95 98 99 99 98 89 95 100 95 95 89 92 92 94 91 83 99 94 91 82 93 91 85 77 35 Engine 3 | . 9 14 14 14 7 2 7 7 7 7 5 5 6 6 5 . 4 . . . . . . . . . . . . . Reactor 1 | . . . . . . . . . . . . . . . . 4 . 4 5 4 . 1 4 4 2 4 4 3 3 . Treads 2 | . . . . . 7 4 5 11 3 . 2 . . . . . . . . . . . . . 3 8 4 2 2 . Leg 5 | . 5 6 14 14 4 . . . 11 15 10 18 20 16 9 . . . . . . . . . . . . 2 5 . Wheel 5 | . 22 16 14 14 5 6 7 2 . . 3 . . . 3 8 11 10 11 11 11 15 12 9 1 . . . . . Device 4 | . . . . . 9 5 6 5 6 5 10 11 1 . 3 . . . . . 1 7 8 4 . . . 2 3 7 Storage 14 | . 14 14 14 14 9 8 15 15 14 15 14 13 13 13 11 13 17 17 17 17 18 21 16 14 14 14 14 12 7 . Processor 17 | . . 14 14 14 17 18 23 23 23 23 17 20 20 20 17 17 17 17 17 17 13 21 21 19 16 14 10 7 7 2 Hackware 18 | . . . . . 4 14 15 15 15 12 4 3 20 19 25 28 23 23 23 22 9 11 17 21 29 38 39 36 33 18 Protection 4 | . . . . . 8 10 . 1 . 2 4 8 2 6 3 1 3 4 5 5 11 4 1 7 3 2 2 4 2 . Energy Gun 3 | . 25 26 28 14 9 2 2 4 . 1 1 5 . 2 4 2 3 . . . 3 5 6 . . . . . 3 . Launcher 1 | . 2 1 . 14 3 1 9 3 7 5 1 1 . . . . . 2 5 4 1 . . . . . . . . . Special Weapon 1 | . . . . . . . . . . . . 2 5 3 2 4 4 . 5 4 1 3 1 2 2 4 2 2 1 2 Slashing Weapon 1 | . . . . . 3 5 2 . 6 6 5 . . . . . . . . . . . . 3 2 3 2 1 1 . Naked Turns 4 | . . . . . . . . . . . . . . . . . . . . . . . . . . . . . . 4 Heaviest Build 152 | 11 41 42 42 43 63 81 81 88 83 86 104 109 92 93 90 101 118 123 120 136 145 146 149 144 152 110 115 137 90 15 Greatest Support 115 | 20 20 20 10 10 20 28 28 50 48 40 60 45 45 45 46 40 40 40 40 40 40 36 36 36 108 115 70 83 83 23 Greatest Overweight (x) 40 | . 2 4 4 4 6 5 7 8 2 2 26 10 2 3 3 3 2 35 2 3 40 4 6 5 26 3 1 26 2 4 Average Overweight (x) 2 | . . 3 4 4 4 2 5 3 1 1 2 2 1 1 1 2 2 2 2 2 3 3 3 4 1 . 1 1 . . Largest Inventory Capacity 30 | . 14 12 12 12 12 20 20 20 20 20 20 20 20 20 20 26 26 26 26 28 28 28 28 28 28 26 26 30 16 4 Average Capacity 22 | . 6 12 12 12 12 13 20 20 19 20 20 20 20 20 20 22 26 26 26 27 28 28 28 28 25 26 26 23 14 4 Most Carried 28 | . 6 12 12 12 12 19 20 20 20 20 20 20 20 20 20 26 26 26 26 25 28 28 28 28 28 26 26 25 16 4 Average Carried 20 | . 5 9 11 12 11 12 19 18 19 19 16 16 19 18 19 18 25 25 24 24 26 27 24 26 21 25 23 20 14 1 Final Capacity 28 | 6 12 12 12 12 12 20 20 20 20 20 20 20 20 20 20 26 26 26 26 28 28 28 28 28 26 26 26 16 4 4 Final Carried 28 | 6 5 11 12 12 12 19 20 20 20 17 15 20 20 20 20 26 26 26 24 22 28 28 28 28 26 24 25 16 3 2 Class Distribution -------------------- 39% | Botlord-Mutant 25% | Bothacker-Mutant 8% | Hacker-Assassin 7% | Hacker-Mutant 6% | Mutant 6% | Hauler-Mutant Dominant Class ---------------- Mutant | -10/Materials Mutant | -10/Mines Mutant | -10/Exiles Mutant | -9/Mines Mutant | -8/Materials Hacker-Mutant | -7/Factory Hacker-Assassin | -7/Lower Caves Hacker-Skirmisher | -7/Lower Caves Hacker-Assassin | -7/Zion Hacker-Assassin | -6/Proximity Caves Hauler-Mutant | -6/Factory Bothacker-Mutant | -6/Garrison Bothacker-Mutant | -6/Factory Bothacker-Mutant | -6/Garrison Bothacker-Mutant | -5/Factory Bothacker-Mutant | -5/Garrison Bothacker-Mutant | -5/Extension Bothacker-Mutant | -5/Cetus Bothacker-Mutant | -5/Archives Bothacker-Mutant | -5/Hub_04(d) Botlord-Mutant | -5/Garrison Botlord-Mutant | -4/Factory Botlord-Mutant | -4/Garrison Botlord-Mutant | -3/Research Botlord-Mutant | -3/Garrison Botlord-Mutant | -3/Research Botlord-Mutant | -3/Garrison Botlord-Mutant | -2/Research Botlord-Mutant | -2/Garrison Hacker-Mutant | -1/Access Resources | -11 -10 -10 -10 -9 -8 -7 -7 -7 -7 -6 -6 -6 -6 -6 -5 -5 -5 -5 -5 -5 -5 -4 -4 -3 -3 -3 -3 -2 -2 -1 ----------- Run | Scr Mat Min Exi Min Mat Fac Low Low Zio Pro Fac Gar Fac Gar Fac Gar Ext Cet Arc Hub Gar Fac Gar Res Gar Res Gar Res Gar Acc Matter Collected 10334 | 200 . 135 . . 185 555 152 201 130 195 296 743 32 633 64 632 360 447 121 90 960 305 973 386 819 230 640 703 140 7 Remotely . | . . . . . . . . . . . . . . . . . . . . . . . . . . . . . . . Salvage Created 9902 | . 134 147 . . 278 1100 55 305 52 128 658 811 . 662 . 769 250 510 . 210 1015 110 753 123 493 160 308 683 188 . Parts 408 | . 13 7 . . 14 61 1 16 . 13 29 21 . 25 . 29 7 20 . 4 38 4 27 3 19 14 8 30 5 . Haulers Intercepted 3 | . 1 . . . 1 1 . . . . . . . . . . . . . . . . . . . . . . . . Recyclers Shooed 3 | . . . . . . 2 . . . . . . . . . . 1 . . . . . . . . . . . . . Parts Field Recycled . | . . . . . . . . . . . . . . . . . . . . . . . . . . . . . . . Retrieved Matter . | . . . . . . . . . . . . . . . . . . . . . . . . . . . . . . . Parts Self-Destructed 34 | . . . . . . . 8 17 . 9 . . . . . . . . . . . . . . . . . . . . Prevented 4 | . . . . . . . . 4 . . . . . . . . . . . . . . . . . . . . . . Kills | -11 -10 -10 -10 -9 -8 -7 -7 -7 -7 -6 -6 -6 -6 -6 -5 -5 -5 -5 -5 -5 -5 -4 -4 -3 -3 -3 -3 -2 -2 -1 ------- Run | Scr Mat Min Exi Min Mat Fac Low Low Zio Pro Fac Gar Fac Gar Fac Gar Ext Cet Arc Hub Gar Fac Gar Res Gar Res Gar Res Gar Acc Combat Hostiles Destroyed 174 | . 4 4 . . 4 19 5 11 . 9 13 15 . 11 . 9 4 7 . 3 13 1 15 3 10 1 4 7 2 . Melee 19 | . . . . . . 5 1 . . . 7 . . 1 . . 2 . . . . . . . 2 1 . . . . Guns 57 | . 1 . . . 3 . . 1 . 1 1 8 . 3 . 6 2 2 . . 9 1 6 1 5 . . 5 2 . Cannons 22 | . . . . . . 3 . 3 . . 2 . . . . . . . . . . . 4 2 3 . 3 2 . . AOE 56 | . 3 3 . . 1 8 4 7 . 8 2 3 . 4 . 1 . 1 . 3 3 . 5 . . . . . . . Classes Destroyed 14 | . 4 . . . 2 5 . 1 . 1 . . . . . 1 . . . . . . . . . . . . . . Worker 9 | . . . . . . 6 . . . . . . . . . . . . . 1 . . . . . . . 2 . . Builder 4 | . . . . . . 3 . . . . . . . . . . . . . . . . . . . . . 1 . . Hauler 3 | . 1 . . . 1 1 . . . . . . . . . . . . . . . . . . . . . . . . Recycler 2 | . . . . . . 2 . . . . . . . . . . . . . . . . . . . . . . . . Operator 5 | . 1 . . . 1 2 . . . . . . . . . . . 1 . . . . . . . . . . . . Watcher 3 | . . . . . 1 1 . . . . . . . . . . . 1 . . . . . . . . . . . . Swarmer 50 | . 3 . . . . 4 3 3 . 7 . 6 . 2 . 5 1 . . . 4 1 8 . 3 . . . . . Grunt 83 | . 1 4 . . 2 7 2 6 . . 7 7 . 5 . 3 2 4 . 3 5 1 4 3 6 . 4 5 2 . Brawler 4 | . . . . . . 1 . . . . 2 1 . . . . . . . . . . . . . . . . . . Duelist 2 | . . . . . . . . 1 . . . 1 . . . . . . . . . . . . . . . . . . Sentry 19 | . . . . . 2 4 . 1 . . . . . 4 . . 1 . . . 5 . 1 . . 1 . . . . Hunter 7 | . . . . . . . . . . 2 1 . . . . 1 . . . . . . 1 . 1 . . 1 . . Programmer 9 | . . . . . . 3 . . . . 3 . . . . . . . . . 1 . . . . 1 . 1 . . Behemoth 3 | . . . . . . . . . . . . . . . . 1 . . . . . . 1 . 1 . . . . . Cetus Guard 3 | . . . . . . . . . . . . . . . . . . 3 . . . . . . . . . . . . Best Kill Streak 6 | . 4 2 . . 2 5 3 4 . 4 4 3 . 5 . 5 1 5 . 4 3 1 5 3 2 1 1 6 1 . Combat Bots Only 5 | . 3 2 . . 2 3 3 4 . 4 4 3 . 5 . 5 1 4 . 3 3 1 5 3 2 1 1 2 1 . Max Kills in Single Turn 4 | . 2 2 . . 1 2 2 3 . 3 1 1 . 1 . 2 1 1 . 3 2 1 4 1 1 1 1 2 1 . Gunslinging 1 | . . . . . . . . . . . . . . . . 1 . . . . . . . . . . . . . . Exploded 4 | . 2 2 . . 1 2 2 3 . 3 1 1 . 1 . 1 . 1 . 2 2 . 4 . . . . . . . Melee 1 | . . . . . . 1 1 . . . 1 . . 1 . . 1 . . . . . . . 1 1 . . . . Uniques/NPCs Destroyed . | . . . . . . . . . . . . . . . . . . . . . . . . . . . . . . . Combat | -11 -10 -10 -10 -9 -8 -7 -7 -7 -7 -6 -6 -6 -6 -6 -5 -5 -5 -5 -5 -5 -5 -4 -4 -3 -3 -3 -3 -2 -2 -1 -------- Run | Scr Mat Min Exi Min Mat Fac Low Low Zio Pro Fac Gar Fac Gar Fac Gar Ext Cet Arc Hub Gar Fac Gar Res Gar Res Gar Res Gar Acc Damage Taken 25845 | . 182 111 . . 136 1239 211 287 . 410 2812 1355 28 696 . 615 380 138 27 1038 2426 43 1190 469 2843 407 617 2580 3261 2344 Core 5724 | . 65 41 . . 26 140 48 36 . 114 550 141 14 47 . 104 . . 27 143 372 . 131 80 547 23 44 566 851 1614 Absorbed by Shields 1467 | . . . . . . . . . . . . . . . . . 20 50 . . 156 46 714 110 179 . . 192 . . Reduced by Siege Mode 288 | . . . . . . . . . . . . . . . . . . . . . . . . . . . . . 288 . Core Remaining (%) 53 | 100 . . . 57 95 . . . . 51 . . . 11 . . . . . . 35 . 88 . . . 46 . 2 . Volleys Fired 985 | . 9 9 . . 13 62 8 11 . 11 34 82 11 56 7 54 70 23 13 12 139 31 112 27 65 24 38 45 19 . Largest 2 | . 2 2 . . 2 2 2 2 . 2 2 2 1 1 1 2 2 2 1 1 2 2 2 2 2 1 2 2 2 . Hottest 182 | . 80 80 . . 103 103 63 135 . 85 99 149 30 80 40 120 141 81 40 81 159 100 162 100 155 94 129 94 182 . Shots Fired 1214 | . 16 17 . . 22 72 10 20 . 16 36 95 11 58 7 62 76 31 13 12 169 33 171 35 89 24 42 48 29 . Gun 595 | . 14 16 . . 21 16 2 5 . 4 2 63 . 15 . 31 17 19 . . 131 10 126 8 44 . 2 25 24 . Cannon 160 | . . . . . . 35 . 7 . . 28 . . . . . 6 3 . 1 3 . 15 8 23 2 21 8 . . Launcher 119 | . 2 1 . . 1 21 8 8 . 12 6 17 . 18 . . . 8 . 7 8 . 2 . . . . . . . Special 340 | . . . . . . . . . . . . 15 11 25 7 31 53 1 13 4 27 23 28 19 22 22 19 15 5 . Kinetic 250 | . . . . . . . . 1 . . 28 . . 11 . . 6 22 . . 32 2 52 16 49 . 2 20 9 . Thermal 232 | . . . . . 7 6 2 6 . . . 63 . 3 . . 6 . . . 27 . 74 . 18 . . 5 15 . Explosive 63 | . 2 1 . . 1 21 8 8 . 12 . . . . . . . . . . 8 . 2 . . . . . . . Electromagnetic 329 | . 14 16 . . 14 45 . 5 . 4 8 17 . 19 . 31 11 8 . 8 75 8 15 . . 2 21 8 . . Robot Hit Streak 31 | . 3 11 . . 19 27 5 7 . 5 10 10 11 20 8 25 30 5 10 11 14 13 16 21 20 29 31 20 26 . Robot Miss Streak 6 | . 3 1 . . 2 2 1 2 . 2 6 3 1 3 . 2 3 3 1 2 3 3 5 1 3 2 1 2 3 . Penetration Max 2 | . . . . . . . . . . . . . . . . . 1 1 . . . . . 1 1 . . 2 1 . Secondary Targets 8 | . 1 . . . 1 . . . . . . 1 . . . 3 . . . . . . . . 1 . . . 1 . Max Gunslinging Chain 1 | . 1 . . . 1 . . . . . . 1 . . . 1 . . . . . . . . 1 . . . 1 . Shots Hit Robots 936 | . 5 15 . . 20 77 9 14 1 7 51 57 10 39 7 68 67 18 12 5 102 26 100 30 74 24 35 37 26 . Core Hits 422 | . 8 6 . . 12 46 8 23 . 15 44 30 . 25 . 16 7 19 . 17 42 3 35 5 19 3 8 19 10 2 Critical Hits 48 | . . . . . 1 1 . . . . 2 3 . . . 2 5 5 . . 7 . 7 1 12 . . 2 . . Critical Kills 18 | . . . . . 1 1 . . . . 1 2 . . . 1 1 3 . . 2 . 1 . 3 . . 2 . . Critical Parts Destroyed 23 | . . . . . . . . . . . 1 1 . . . . 3 2 . . 3 . 6 1 6 . . . . . Melee Attacks 233 | . . . . . 16 32 2 . 1 . 50 2 1 4 5 28 6 . . . . . . 10 24 19 20 9 4 . Impact . | . . . . . . . . . . . . . . . . . . . . . . . . . . . . . . . Slashing 171 | . . . . . 16 32 2 . 1 . 34 . . . . . . . . . . . . 10 24 19 20 9 4 . Piercing 62 | . . . . . . . . . . . 16 2 1 4 5 28 6 . . . . . . . . . . . . . Sneak Attacks 20 | . . . . . 1 3 . . . . 1 . . . . 1 2 . . . . . . . 7 2 1 2 . . Combat Hostiles 7 | . . . . . . . . . . . . . . . . . . . . . . . . . 3 1 1 2 . . Follow-up Attacks 1 | . . . . . . . . . . . 1 . . . . . . . . . . . . . . . . . . . Damage Inflicted 28342 | . 216 270 . . 581 3391 619 954 134 743 1824 1843 . 949 . 1927 939 1718 . 1284 2744 129 2455 469 2254 338 598 1321 619 23 Guns 8906 | . 95 180 . . 208 199 34 78 . 62 17 1014 . 172 . 403 319 311 . . 1695 129 1530 214 782 . 23 822 619 . Cannons 3910 | . . . . . . 867 . 142 . . 570 . . . . . 104 98 . 35 66 . 257 255 733 87 444 252 . . Explosions 9754 | . 121 90 . . 113 1290 493 734 . 681 381 829 . 746 . 47 42 1309 . 1227 983 . 668 . . . . . . . Melee 5720 | . . . . . 260 1035 92 . 134 . 856 . . 31 . 1477 474 . . . . . . . 739 251 131 240 . . Ramming 52 | . . . . . . . . . . . . . . . . . . . . 22 . . . . . . . 7 . 23 Kinetic 5284 | . . . . . . . . 15 . . 570 . . 151 . . 104 409 . . 636 . 771 469 1156 . 23 744 236 . Thermal 4565 | . . 29 . . 88 104 34 127 . . . 1014 . 21 . 47 168 535 . . 634 . 944 . 359 . . 78 383 . Explosive 5019 | . 121 61 . . 74 1290 493 734 . 681 . . . . . . . . . . 897 . 668 . . . . . . . Electromagnetic 7702 | . 95 180 . . 159 962 . 78 . 62 398 829 . 746 . 403 193 774 . 1262 577 129 72 . . 87 444 252 . . Impact . | . . . . . . . . . . . . . . . . . . . . . . . . . . . . . . . Slashing 3663 | . . . . . 260 1035 92 . 134 . 781 . . . . . . . . . . . . . 739 251 131 240 . . Piercing 2057 | . . . . . . . . . . . 75 . . 31 . 1477 474 . . . . . . . . . . . . . Highest Corruption 11 | . . . . . . 2 2 2 2 . 4 4 5 5 . . . . . 5 5 5 5 . 9 9 9 11 11 11 Average Corruption 5 | . . . . . . 1 2 2 2 . 2 4 4 5 . . . . . 2 5 5 5 . 9 9 9 6 11 4 Corruption Purged . | . . . . . . . . . . . . . . . . . . . . . . . . . . . . . . . Effects 437 | . . . . . . 3 5 9 4 . 14 48 16 46 . . . . . . 66 12 57 . 36 27 64 10 18 2 Message Errors 114 | . . . . . . 1 . 3 1 . 3 12 5 15 . . . . . . 12 1 14 . 14 6 22 2 1 2 Matter Fused 74 | . . . . . . . . . . . 3 15 4 4 . . . . . . 11 5 9 . 7 4 9 2 1 . Heat Flow Errors 42 | . . . . . . . . 1 1 . 1 4 1 7 . . . . . . 7 1 5 . 2 2 6 . 4 . Energy Discharges 61 | . . . . . . . 1 2 1 . 1 6 3 6 . . . . . . 11 1 6 . 4 2 12 2 3 . Parts Rejected 6 | . . . . . . . . . . . . 2 . . . . . . . . 1 . . . . 1 . . 2 . Data Loss (minor) 54 | . . . . . . 1 2 3 1 . 2 7 2 6 . . . . . . 6 1 7 . 6 3 4 2 1 . Data Loss (major) 15 | . . . . . . . . . . . . . . 1 . . . . . . 3 1 2 . 1 4 3 . . . Misfires 13 | . . . . . . . . . . . . . . 2 . . . . . . 4 . 4 . . . 2 1 . . Misdirections 3 | . . . . . . . . . . . . . . . . . . . . . . . . . . . . . 3 . Targeting Errors 52 | . . . . . . 1 2 . . . 3 1 1 5 . . . . . . 10 2 10 . 2 5 6 1 3 . Weapon Failures 3 | . . . . . . . . . . . 1 1 . . . . . . . . 1 . . . . . . . . . Overload Shots . | . . . . . . . . . . . . . . . . . . . . . . . . . . . . . . . Overflow Damage 1189 | . . . . . 18 510 41 28 121 . 7 13 . 2 . 112 . 49 . 1 38 . 34 16 94 . 26 79 . . Projectiles 134 | . . . . . . 51 . 14 . . . . . . . . . . . . . . . 16 27 . 26 . . . Explosions 278 | . . . . . . 103 24 14 . . . 13 . 2 . . . 49 . 1 38 . 34 . . . . . . . Melee 777 | . . . . . 18 356 17 . 121 . 7 . . . . 112 . . . . . . . . 67 . . 79 . . Knockbacks 24 | . . . . . . . . 1 . . 15 . . . . . 1 . . . . . 2 2 3 . . . . . Impact . | . . . . . . . . . . . . . . . . . . . . . . . . . . . . . . . Kinetic 24 | . . . . . . . . 1 . . 15 . . . . . 1 . . . . . 2 2 3 . . . . . Secondary . | . . . . . . . . . . . . . . . . . . . . . . . . . . . . . . . Self-Inflicted Damage 850 | . 95 . . . . 197 . 64 . 48 9 42 . . . . . 5 . 115 182 . 82 . . . . . . 11 Shots 25 | . 2 . . . . 5 . 3 . 2 2 3 . . . . . 1 . 2 4 . 1 . . . . . . . Rammed 5 | . . . . . . . . . . . . . . . . . . . . 1 . . . . . . . . . 4 Targets Rammed 6 | . . . . . . . . . . . . . . . . . . . . 1 . . . . . . . 1 . 4 Kicked 1 | . . . . . . . . . . . . . . . . . . . . . . . . . . . . 1 . . Crushed . | . . . . . . . . . . . . . . . . . . . . . . . . . . . . . . . Highest Temperature 615 | . 78 126 . . 135 30 . 189 263 26 185 279 83 267 28 204 121 12 36 24 615 284 290 22 338 246 220 131 429 . Average Temperature 74 | . 27 56 . . 48 9 . 66 134 14 93 81 30 75 13 43 28 8 17 12 113 96 54 9 88 57 62 35 147 . Received Heat Transfer 3744 | . 6 63 . . 45 249 18 117 . . 747 444 . 207 . 90 61 17 9 90 294 4 46 67 261 39 75 192 594 9 Effects 13 | . . . . . . . . . . . . . . . . . . . . . 11 1 . . . . . . 1 . Shutdowns 1 | . . . . . . . . . . . . . . . . . . . . . 1 . . . . . . . . . Energy Bleed 1 | . . . . . . . . . . . . . . . . . . . . . . 1 . . . . . . . . Interference 4 | . . . . . . . . . . . . . . . . . . . . . 4 . . . . . . . . . Matter Decay 1 | . . . . . . . . . . . . . . . . . . . . . 1 . . . . . . . . . Short Circuit 2 | . . . . . . . . . . . . . . . . . . . . . 2 . . . . . . . . . Damage (minor) 3 | . . . . . . . . . . . . . . . . . . . . . 2 . . . . . . . 1 . Damage (core) 1 | . . . . . . . . . . . . . . . . . . . . . 1 . . . . . . . . . Siege Activations 2 | . . . . . . . . . . . . . . . . . . . . . . . . . . . . . 2 . Total Turns 55 | . . . . . . . . . . . . . . . . . . . . . . . . . . . . . 55 . Longest Duration 34 | . . . . . . . . . . . . . . . . . . . . . . . . . . . . . 34 . Robots Corrupted 21 | . . 1 . . . 4 . . . . 1 3 . 3 . 1 . 4 . . 3 . . . . . 1 . . . Combat Hostiles 18 | . . 1 . . . 3 . . . . 1 3 . 3 . 1 . 4 . . 1 . . . . . 1 . . . Parts Fried 34 | . 1 . . . . 7 . . . . 3 5 . 3 . 3 1 6 . 2 2 . . . . . . 1 . . Impact Corruptions . | . . . . . . . . . . . . . . . . . . . . . . . . . . . . . . . Robots Melted 1 | . . . . . . . . . . . . 1 . . . . . . . . . . . . . . . . . . Combat Hostiles 1 | . . . . . . . . . . . . 1 . . . . . . . . . . . . . . . . . . Parts Melted 18 | . . . . . . . . . . . . 9 . 1 . . . . . . 4 . 3 . . . . . 1 . Heat Transferred 6374 | . . 50 . . 161 222 74 250 . . . 1628 . 50 . 50 235 400 . . 803 . 1423 . 494 . . 111 423 . Parts Sabotaged . | . . . . . . . . . . . . . . . . . . . . . . . . . . . . . . . Parts Stolen . | . . . . . . . . . . . . . . . . . . . . . . . . . . . . . . . Parts Stripped . | . . . . . . . . . . . . . . . . . . . . . . . . . . . . . . . Power Chain Reactions 10 | . . 1 . . 1 . . . . . . 1 . 1 . 1 1 3 . . 1 . . . . . . . . . Missiles Intercepted . | . . . . . . . . . . . . . . . . . . . . . . . . . . . . . . . Alert | -11 -10 -10 -10 -9 -8 -7 -7 -7 -7 -6 -6 -6 -6 -6 -5 -5 -5 -5 -5 -5 -5 -4 -4 -3 -3 -3 -3 -2 -2 -1 ------- Run | Scr Mat Min Exi Min Mat Fac Low Low Zio Pro Fac Gar Fac Gar Fac Gar Ext Cet Arc Hub Gar Fac Gar Res Gar Res Gar Res Gar Acc Peak Influence 1431 | . 144 145 . . 102 520 . . . . 175 619 345 570 337 551 621 453 231 750 1431 803 1205 719 524 323 576 368 159 29 Initial 751 | . . 55 . . . . . . . . 12 20 324 160 294 132 289 112 100 28 476 751 473 677 114 294 110 324 42 29 Average 408 | . 49 96 . . 24 260 . . . . 42 358 214 439 290 358 336 248 88 265 1048 692 904 375 338 237 384 226 93 8 Maximum Alert Level 4 | . . . . . . 2 . . . . . 2 1 2 1 2 2 2 1 3 4 3 4 3 2 1 2 1 . . Low Security (%) 29 | . 100 100 . 100 100 39 . . . . 100 7 26 8 9 11 31 35 98 69 . . . 50 9 47 14 33 100 100 Level 1 26 | . . . . . . 26 . . . . . 37 73 24 90 52 33 43 1 . . . . . 53 52 27 66 . . Level 2 28 | . . . . . . 34 . . . . . 54 . 67 . 36 34 21 . 20 15 63 18 26 36 . 58 . . . Level 3 9 | . . . . . . . . . . . . . . . . . . . . 10 30 36 61 22 . . . . . . Level 4 6 | . . . . . . . . . . . . . . . . . . . . . 53 . 20 . . . . . . . Level 5 . | . . . . . . . . . . . . . . . . . . . . . . . . . . . . . . . High Security . | . . . . . . . . . . . . . . . . . . . . . . . . . . . . . . . Max Security . | . . . . . . . . . . . . . . . . . . . . . . . . . . . . . . . Squads Dispatched 48 | . 1 . . . 1 4 . . . . 9 . 2 . 2 . 2 . . 5 . 2 . 5 . 11 . 4 . . Investigation 12 | . . . . . 1 1 . . . . 2 . . . 1 . 1 . . 1 . . . 3 . 1 . 1 . . Extermination 11 | . . . . . . 3 . . . . 4 . . . . . . . . . . 1 . . . 1 . 2 . . Reinforcement 18 | . 1 . . . . . . . . . 3 . 1 . . . 1 . . 3 . . . 2 . 6 . 1 . . Assault 3 | . . . . . . . . . . . . . . . . . . . . . . 1 . . . 2 . . . . Garrison 4 | . . . . . . . . . . . . . 1 . 1 . . . . 1 . . . . . 1 . . . . Intercept . | . . . . . . . . . . . . . . . . . . . . . . . . . . . . . . . Construction Impeded 2 | . . . . . . . . . . . . . . . . . . . . 1 . . . . . 1 . . . . Haulers Reinforced 4 | . . . . . . . . . . . 1 . 1 . . . . . . . . . . 1 . 1 . . . . Stealth | -11 -10 -10 -10 -9 -8 -7 -7 -7 -7 -6 -6 -6 -6 -6 -5 -5 -5 -5 -5 -5 -5 -4 -4 -3 -3 -3 -3 -2 -2 -1 --------- Run | Scr Mat Min Exi Min Mat Fac Low Low Zio Pro Fac Gar Fac Gar Fac Gar Ext Cet Arc Hub Gar Fac Gar Res Gar Res Gar Res Gar Acc Distress Signals 21 | . . . . . 2 3 . . . . 3 . . . 1 . 1 2 . 1 . . . 3 . 3 . 2 . . Communications Jammed 15 | . . . . . . . . . . . . . . . . . . . . . . . . . . . 3 12 . . Distress Signals 15 | . . . . . . . . . . . . . . . . . . . . . . . . . . . 3 12 . . Times Spotted 539 | . 7 5 . . 10 26 8 11 . 9 32 27 14 29 5 33 28 24 2 27 37 10 41 15 37 15 17 25 23 22 Peak Tracking Total 15 | . 4 2 . . 3 4 3 4 . 4 7 6 6 6 3 8 4 7 1 13 5 2 9 5 15 3 2 6 14 14 Tactical Retreats 40 | . . 1 . . . . 1 1 . . 3 1 . 4 . 3 1 2 . 4 8 . 6 . 1 . 1 . 1 2 Traps | -11 -10 -10 -10 -9 -8 -7 -7 -7 -7 -6 -6 -6 -6 -6 -5 -5 -5 -5 -5 -5 -5 -4 -4 -3 -3 -3 -3 -2 -2 -1 ------- Run | Scr Mat Min Exi Min Mat Fac Low Low Zio Pro Fac Gar Fac Gar Fac Gar Ext Cet Arc Hub Gar Fac Gar Res Gar Res Gar Res Gar Acc Traps Triggered 63 | . . . . . 1 6 . . . . . 8 . 5 1 7 4 . . . 5 . 7 . 7 1 8 . 3 . Indirectly 4 | . . . . . . . . . . . . 2 . 2 . . . . . . . . . . . . . . . . Trap Hack Attempts . | . . . . . . . . . . . . . . . . . . . . . . . . . . . . . . . Triggered . | . . . . . . . . . . . . . . . . . . . . . . . . . . . . . . . Disarmed . | . . . . . . . . . . . . . . . . . . . . . . . . . . . . . . . Reprogrammed 12 | . . . . . . . . . . . . . . . . . . . . . . 12 . . . . . . . . Reused 7 | . . 1 . . 1 . . 1 . . . . . . . . . . . . . 4 . . . . . . . . Traps Extracted . | . . . . . . . . . . . . . . . . . . . . . . . . . . . . . . . Installed 4 | . . 2 . . 1 . . 1 . . . . . . . . . . . . . . . . . . . . . . Triggered 9 | . . 1 . . 1 . . 2 . . . . . . . . . . . . . 4 . . . 1 . . . . Exploded 1 | . . . . . . . . 1 . . . . . . . . . . . . . . . . . . . . . . Machines | -11 -10 -10 -10 -9 -8 -7 -7 -7 -7 -6 -6 -6 -6 -6 -5 -5 -5 -5 -5 -5 -5 -4 -4 -3 -3 -3 -3 -2 -2 -1 ---------- Run | Scr Mat Min Exi Min Mat Fac Low Low Zio Pro Fac Gar Fac Gar Fac Gar Ext Cet Arc Hub Gar Fac Gar Res Gar Res Gar Res Gar Acc Machines Disabled 76 | . 1 . . . 2 10 . . . . . 5 4 5 . 3 1 1 3 15 7 . 4 . 4 . 7 1 3 . Max in Single Turn 15 | . 1 . . . 1 4 . . . . . 2 . 1 . 1 1 1 . 15 2 . 1 . 1 . 1 . 1 . Garrison Access 1 | . . . . . . . . . . . . . . . . . . . . . . . . . . 1 . . . . Garrison Relay 28 | . . . . . . . . . . . . 4 . 3 . 4 . . . . 4 . 4 . 4 . 4 . 1 . Phase Generator 1 | . . . . . . . . . . . . . . . . . . . . . 1 . . . . . . . . . Network Hub 1 | . . . . . . . . . . . . . . . . . . . . 1 . . . . . . . . . . Machines Sabotaged . | . . . . . . . . . . . . . . . . . . . . . . . . . . . . . . . Garrisons Compromised . | . . . . . . . . . . . . . . . . . . . . . . . . . . . . . . . Overloaded Fab Kills . | . . . . . . . . . . . . . . . . . . . . . . . . . . . . . . . Fab Network Shutdowns . | . . . . . . . . . . . . . . . . . . . . . . . . . . . . . . . Hacking | -11 -10 -10 -10 -9 -8 -7 -7 -7 -7 -6 -6 -6 -6 -6 -5 -5 -5 -5 -5 -5 -5 -4 -4 -3 -3 -3 -3 -2 -2 -1 --------- Run | Scr Mat Min Exi Min Mat Fac Low Low Zio Pro Fac Gar Fac Gar Fac Gar Ext Cet Arc Hub Gar Fac Gar Res Gar Res Gar Res Gar Acc Machines Accessed 83 | . 2 1 3 . 10 11 1 1 . . 6 . 4 . 2 . 16 3 1 2 . 6 . 7 . 4 . 3 . . Terminals 52 | . 2 . . . 8 6 . . . . 2 . 2 . 1 . 15 3 . 1 . 5 . 5 . 1 . 1 . . Fabricators 2 | . . . . . . . . . . . . . 1 . . . . . . . . . . . . . . 1 . . Repair Stations 2 | . . . . . . 1 . . . . . . . . . . . . . . . . . 1 . . . . . . Recycling Units 8 | . . . . . 1 3 . . . . 2 . . . . . 1 . . . . . . . . 1 . . . . Scanalyzers 2 | . . . . . 1 1 . . . . . . . . . . . . . . . . . . . . . . . . Garrison Access 10 | . . . . . . . . . . . 2 . 1 . 1 . . . . 1 . 1 . 1 . 2 . 1 . . Total Hacks 243 | . 8 1 3 . 35 26 9 1 . . 11 . 11 . 4 . 44 8 25 2 . 20 . 17 . 15 . 3 . . Successful 149 | . 6 1 3 . 20 14 9 1 . . 3 . 7 . 2 . 23 8 25 1 . 9 . 8 . 7 . 2 . . Failed 94 | . 2 . . . 15 12 . . . . 8 . 4 . 2 . 21 . . 1 . 11 . 9 . 8 . 1 . . Catastrophic 22 | . . . . . 2 2 . . . . 2 . . . 1 . 5 . . . . 5 . 2 . 2 . 1 . . Database Lockouts . | . . . . . . . . . . . . . . . . . . . . . . . . . . . . . . . Manual 123 | . 8 . 1 . 24 13 . . . . 4 . 6 . 3 . 28 4 . 1 . 13 . 7 . 9 . 2 . . Terminals 153 | . 8 . . . 28 14 . . . . 4 . 7 . 3 . 38 8 . 1 . 19 . 13 . 9 . 1 . . Fabricators 4 | . . . . . . . . . . . . . 3 . . . . . . . . . . . . . . 1 . . Repair Stations 5 | . . . . . . 2 . . . . . . . . . . . . . . . . . 3 . . . . . . Recycling Units 22 | . . . . . 2 6 . . . . 5 . . . . . 6 . . . . . . . . 3 . . . . Scanalyzers 9 | . . . . . 5 4 . . . . . . . . . . . . . . . . . . . . . . . . Garrison Access 11 | . . . . . . . . . . . 2 . 1 . 1 . . . . 1 . 1 . 1 . 3 . 1 . . Terminal Hacks 92 | . 4 1 3 . 8 4 9 1 . . . . 2 . 1 . 16 7 25 . . 6 . 5 . . . . . . Record 42 | . . . 2 . . . 9 . . . . . . . . . 1 4 25 . . . . 1 . . . . . . Robot Schematic 1 | . . . . . . . . . . . . . . . . . 1 . . . . . . . . . . . . . Prototype ID Bank 1 | . . . . . . . . . . . . . . . . . 1 . . . . . . . . . . . . . Open Door 8 | . . 1 . . . . . 1 . . . . . . . . 5 1 . . . . . . . . . . . . Level Access Points 1 | . . . . . 1 . . . . . . . . . . . . . . . . . . . . . . . . . Branch Access Points 3 | . 1 . . . . . . . . . . . . . . . 1 . . . . 1 . . . . . . . . Terminal Index 2 | . 1 . . . . . . . . . . . . . . . . . . . . . . 1 . . . . . . Alert Level 2 | . . . . . 1 1 . . . . . . . . . . . . . . . . . . . . . . . . Unreport Threat 10 | . . . . . . 1 . . . . . . 1 . 1 . 3 2 . . . 1 . 1 . . . . . . Locate Traps 1 | . . . . . . . . . . . . . . . . . . . . . . 1 . . . . . . . . Reprogram Traps 2 | . . . . . . . . . . . . . . . . . . . . . . 2 . . . . . . . . Dispatch Records 1 | . 1 . . . . . . . . . . . . . . . . . . . . . . . . . . . . . Maintenance Status 1 | . . . . . . . . . . . . . 1 . . . . . . . . . . . . . . . . . Security Status 1 | . . . . . 1 . . . . . . . . . . . . . . . . . . . . . . . . . Surveillance Status 1 | . . . . . 1 . . . . . . . . . . . . . . . . . . . . . . . . . Investigation Status 1 | . . . . . . . . . . . . . . . . . . . . . . . . 1 . . . . . . Extermination Status 1 | . . . . . . . . . . . . . . . . . . . . . . 1 . . . . . . . . Recall Investigation 2 | . . . . . 1 1 . . . . . . . . . . . . . . . . . . . . . . . . Recall Reinforcements 1 | . . . . . . 1 . . . . . . . . . . . . . . . . . . . . . . . . Hauler Manifests 2 | . 1 . . . 1 . . . . . . . . . . . . . . . . . . . . . . . . . Registered Components 3 | . . . . . 1 . . . . . . . . . . . 1 . . . . . . 1 . . . . . . Zone Layout 4 | . . . . . 1 . . . . . . . . . . . 3 . . . . . . . . . . . . . EX-Prototype ID Bank 1 | . . . 1 . . . . . . . . . . . . . . . . . . . . . . . . . . . Fabricator Hacks 2 | . . . . . . . . . . . . . 2 . . . . . . . . . . . . . . . . . Network Status 1 | . . . . . . . . . . . . . 1 . . . . . . . . . . . . . . . . . Build 1 | . . . . . . . . . . . . . 1 . . . . . . . . . . . . . . . . . Repair Station Hacks 4 | . . . . . . 2 . . . . . . . . . . . . . . . . . 2 . . . . . . Scan Component 2 | . . . . . . 1 . . . . . . . . . . . . . . . . . 1 . . . . . . Repair 2 | . . . . . . 1 . . . . . . . . . . . . . . . . . 1 . . . . . . Recycling Unit Hacks 16 | . . . . . 2 4 . . . . 2 . . . . . 5 . . . . . . . . 3 . . . . Process 2 | . . . . . . . . . . . . . . . . . 1 . . . . . . . . 1 . . . . Report Inventory 6 | . . . . . 1 2 . . . . 1 . . . . . 1 . . . . . . . . 1 . . . . Retrieve Matter 2 | . . . . . . . . . . . . . . . . . 1 . . . . . . . . 1 . . . . Retrieve Components 6 | . . . . . 1 2 . . . . 1 . . . . . 2 . . . . . . . . . . . . . Scanalyzer 8 | . . . . . 5 3 . . . . . . . . . . . . . . . . . . . . . . . . Insert Component 5 | . . . . . 3 2 . . . . . . . . . . . . . . . . . . . . . . . . Analyze 3 | . . . . . 2 1 . . . . . . . . . . . . . . . . . . . . . . . . Garrison Access Hacks 10 | . . . . . . . . . . . 1 . 1 . 1 . . . . 1 . 1 . 1 . 3 . 1 . . Unlock Access 8 | . . . . . . . . . . . 1 . 1 . 1 . . . . 1 . 1 . 1 . 1 . 1 . . Seal Access 1 | . . . . . . . . . . . . . . . . . . . . . . . . . . 1 . . . . Coupler Status 1 | . . . . . . . . . . . . . . . . . . . . . . . . . . 1 . . . . Unauthorized Hacks 17 | . 2 . . . 5 1 . . . . . . 2 . . . 2 1 . . . 2 . . . 1 . 1 . . Terminals 15 | . 2 . . . 5 1 . . . . . . 2 . . . 1 1 . . . 2 . . . 1 . . . . Track 1 | . . . . . 1 . . . . . . . . . . . . . . . . . . . . . . . . . Assimilate 1 | . . . . . 1 . . . . . . . . . . . . . . . . . . . . . . . . . Botnet 13 | . 2 . . . 3 1 . . . . . . 2 . . . 1 1 . . . 2 . . . 1 . . . . Fabricators 1 | . . . . . . . . . . . . . . . . . . . . . . . . . . . . 1 . . Haulers 1 | . . . . . . . . . . . . . . . . . . . . . . . . . . . . 1 . . Repair Stations . | . . . . . . . . . . . . . . . . . . . . . . . . . . . . . . . Recycling Units 1 | . . . . . . . . . . . . . . . . . 1 . . . . . . . . . . . . . Tunnel 1 | . . . . . . . . . . . . . . . . . 1 . . . . . . . . . . . . . Scanalyzers . | . . . . . . . . . . . . . . . . . . . . . . . . . . . . . . . Garrison Access . | . . . . . . . . . . . . . . . . . . . . . . . . . . . . . . . Data Cores Recovered 1 | . . . . . . 1 . . . . . . . . . . . . . . . . . . . . . . . . Used 1 | . . . . . . 1 . . . . . . . . . . . . . . . . . . . . . . . . Hacking Detections 56 | . 2 . . . 8 7 . . . . 4 . 3 . 1 . 15 2 . 1 . 5 . 6 . 1 . 1 . . Full Trace Events 4 | . . . . . 1 . . . . . 2 . . . 1 . . . . . . . . . . . . . . . Feedback Events . | . . . . . . . . . . . . . . . . . . . . . . . . . . . . . . . Feedback Blocked . | . . . . . . . . . . . . . . . . . . . . . . . . . . . . . . . Robot Schematics Acquired 1 | . . . . . . . . . . . . . . . . . 1 . . . . . . . . . . . . . Robots Built . | . . . . . . . . . . . . . . . . . . . . . . . . . . . . . . . Matter . | . . . . . . . . . . . . . . . . . . . . . . . . . . . . . . . Time . | . . . . . . . . . . . . . . . . . . . . . . . . . . . . . . . Total Robot Build Rating . | . . . . . . . . . . . . . . . . . . . . . . . . . . . . . . . Part Schematics Acquired 3 | . . . . . 2 1 . . . . . . . . . . . . . . . . . . . . . . . . Parts Built 1 | . . . . . . . . . . . . . 1 . . . . . . . . . . . . . . . . . Matter 190 | . . . . . . . . . . . . . 190 . . . . . . . . . . . . . . . . . Time 47 | . . . . . . . . . . . . . 47 . . . . . . . . . . . . . . . . . Total Part Build Rating 5 | . . . . . . . . . . . . . 5 . . . . . . . . . . . . . . . . . Parts Repaired 1 | . . . . . . . . . . . . . . . . . . . . . . . . 1 . . . . . . Time 89 | . . . . . . 61 . . . . . . . . . . . . . . . . . 28 . . . . . . Parts Recycled . | . . . . . . . . . . . . . . . . . . . . . . . . . . . . . . . Recycled Matter 302 | . . . . . . . . . . . . . . . . . 297 . . . . . . . . 5 . . . . Retrieved Matter 398 | . . . . . . . . . . . . . . . . . 393 . . . . . . . . 5 . . . . Retrieved Components 19 | . . . . . 6 12 . . . . 1 . . . . . . . . . . . . . . . . . . . Parts Scanalyzed 4 | . . . . . 2 2 . . . . . . . . . . . . . . . . . . . . . . . . Part Schematics Acquired 3 | . . . . . 2 1 . . . . . . . . . . . . . . . . . . . . . . . . Parts Damaged . | . . . . . . . . . . . . . . . . . . . . . . . . . . . . . . . Bothacking | -11 -10 -10 -10 -9 -8 -7 -7 -7 -7 -6 -6 -6 -6 -6 -5 -5 -5 -5 -5 -5 -5 -4 -4 -3 -3 -3 -3 -2 -2 -1 ------------ Run | Scr Mat Min Exi Min Mat Fac Low Low Zio Pro Fac Gar Fac Gar Fac Gar Ext Cet Arc Hub Gar Fac Gar Res Gar Res Gar Res Gar Acc Used RIF Installer 7 | . . . . . . . . . . . . 1 . 1 . 1 . . . . 1 . 1 . 1 . 1 . . . Signal Jammer 1 | . . . . . . . . . . . . . . . . . . . . . 1 . . . . . . . . . Zone Cloak 1 | . . . . . . . . . . . . . . . . . . . . . . . . . 1 . . . . . Watcher Feeds 1 | . . . . . . . . . . . . . . . . 1 . . . . . . . . . . . . . . Program Shield 1 | . . . . . . . . . . . . . . 1 . . . . . . . . . . . . . . . . Autooverride 1 | . . . . . . . . . . . . . . . . . . . . . . . 1 . . . . . . . Autoassimilate 1 | . . . . . . . . . . . . . . . . . . . . . . . . . . . 1 . . . Robots Hacked 163 | . . . . . . . . . . . . 10 5 12 2 17 9 . 6 1 11 6 12 7 19 16 15 11 4 . Non-combat 16 | . . . . . . . . . . . . . 1 . 1 . 2 . 3 1 . 1 . 2 . 4 . 1 . . Combat 147 | . . . . . . . . . . . . 10 4 12 1 17 7 . 3 . 11 5 12 5 19 12 15 10 4 . Autooverrided 14 | . . . . . . . . . . . . . . . . . . . . . . . 1 . 5 3 2 2 1 . Autoassimilated 1 | . . . . . . . . . . . . . . . . . . . . . . . . . . . . 1 . . Robot Hacks Applied 173 | . . . . . . . . . . . . 10 5 14 2 18 17 . 7 2 11 6 13 13 15 13 14 10 3 . parse_system 2 | . . . . . . . . . . . . . . 1 . . 1 . . . . . . . . . . . . . no_distress 1 | . . . . . . . . . . . . . . . . . 1 . . . . . . . . . . . . . ignore_repairs 1 | . . . . . . . . . . . . . . . . . 1 . . . . . . . . . . . . . map_walls 2 | . . . . . . . . . . . . . . . . . 2 . . . . . . . . . . . . . drop_inventory 3 | . . . . . . . . . . . . . . . . . . . . . . . . . . 3 . . . . purge_threat 5 | . . . . . . . . . . . . . . . . . 1 . 1 . . . . 3 . . . . . . find_terminals 1 | . . . . . . . . . . . . . . . . . . . . 1 . . . . . . . . . . locate_traps 2 | . . . . . . . . . . . . . . . . . 1 . 1 . . . . . . . . . . . block_reporting 3 | . . . . . . . . . . . . . . . . . 1 . . . . . . 2 . . . . . . map_route 4 | . . . . . . . . . . . . . . . . . . . . . . 1 . 1 . 1 . 1 . . scatter_targeting 4 | . . . . . . . . . . . . . . . . . 1 . . . . . 1 . . . 1 1 . . overload_power 3 | . . . . . . . . . . . . 1 . 1 . . . . . . 1 . . . . . . . . . amplify_resonance 13 | . . . . . . . . . . . . . . . . . 1 . . . . . 3 2 3 1 2 . 1 . wipe_record 1 | . . . . . . . . . . . . . . . . . . . . . . . . . . . . 1 . . disable_weapons 2 | . . . . . . . . . . . . . . . . 1 . . . . . . . 1 . . . . . . reboot_system 8 | . . . . . . . . . . . . . . . . . 2 . 1 . 3 . . . . . 2 . . . go_dormant 2 | . . . . . . . . . . . . . 1 . . 1 . . . . . . . . . . . . . . overwrite_iff 47 | . . . . . . . . . . . . 4 . 4 . 8 3 . . . 2 2 6 1 8 3 1 4 1 . streamctrl_high 1 | . . . . . . . . . . . . . . 1 . . . . . . . . . . . . . . . . formatsys_low 4 | . . . . . . . . . . . . . . . . . 1 . 2 1 . . . . . . . . . . formatsys_high 64 | . . . . . . . . . . . . 5 4 7 2 8 1 . 2 . 5 3 3 3 4 5 8 3 1 . Relay Couplers Released 117 | . . . . . . . . . . . . 16 . 13 . 15 . . . . 15 3 18 . 15 1 18 . 3 . Machine Destruction 114 | . . . . . . . . . . . . 16 . 13 . 15 . . . . 15 . 18 . 15 1 18 . 3 . Programmers 3 | . . . . . . . . . . . . . . . . . . . . . . 3 . . . . . . . . Attached 76 | . . . . . . . . . . . . 4 3 6 1 10 5 . 2 1 4 2 8 4 6 3 6 8 1 2 Robots Rewired 15 | . . . . . . . . . . . . . . . . 3 12 . . . . . . . . . . . . . Allies Hacked 1 | . . . . . . . . . . . . . . . . . . . . . . . . . . . 1 . . . Hacks Repelled . | . . . . . . . . . . . . . . . . . . . . . . . . . . . . . . . Allies | -11 -10 -10 -10 -9 -8 -7 -7 -7 -7 -6 -6 -6 -6 -6 -5 -5 -5 -5 -5 -5 -5 -4 -4 -3 -3 -3 -3 -2 -2 -1 -------- Run | Scr Mat Min Exi Min Mat Fac Low Low Zio Pro Fac Gar Fac Gar Fac Gar Ext Cet Arc Hub Gar Fac Gar Res Gar Res Gar Res Gar Acc Total Allies 157 | . . . . . 1 . . . . . . 9 4 10 5 18 22 5 4 1 7 5 9 4 17 11 12 10 3 . Largest Group 18 | . . . . . 1 . . . . . . 2 3 3 4 10 18 10 6 6 3 3 4 3 4 5 6 6 1 . Highest-Rated Group 756 | . . . . . 10 . . . . . . 76 99 87 147 374 666 756 404 404 107 178 252 227 274 303 344 361 64 . Highest-Rated Ally 156 | . . . . . 10 . . . . . . 47 38 47 54 49 156 156 150 94 54 82 115 115 115 90 115 90 64 . Total Orders 65 | . . . . . 1 . . . . . 1 2 4 . . 6 9 . 2 . 2 2 2 . 10 2 13 5 . 4 STAY 26 | . . . . . . . . . . . . 1 2 . . 3 3 . 1 . 1 . 1 . 4 1 7 2 . . ROAM 1 | . . . . . . . . . . . . . . . . . . . . . . . . . 1 . . . . . FOLLOW 27 | . . . . . . . . . . . . 1 2 . . 3 6 . 1 . 1 1 1 . 3 1 6 1 . . AID 1 | . . . . . . . . . . . . . . . . . . . . . . 1 . . . . . . . . EXPLORE 8 | . . . . . . . . . . . 1 . . . . . . . . . . . . . 1 . . 2 . 4 RETURN 2 | . . . . . 1 . . . . . . . . . . . . . . . . . . . 1 . . . . . Ally Attacks 831 | . . . . . . . . . . . . 43 18 44 22 54 183 85 10 18 45 27 34 23 53 42 52 68 10 . Total Damage 26480 | . . . . . . . . . . . . 789 1322 978 434 1177 5571 2805 458 730 1482 649 1474 1117 1715 1189 1384 2823 383 . Kills 161 | . . . . . . . . . . . . 7 10 8 2 7 27 16 2 7 12 5 13 6 14 6 7 11 1 . Allies Corrupted 1 | . . . . . . . . . . . . . . . . . . . . . . . . . . 1 . . . . Allies Melted 2 | . . . . . . . . . . . . . . . . . . . . . . . . . 2 . . . . . Intel | -11 -10 -10 -10 -9 -8 -7 -7 -7 -7 -6 -6 -6 -6 -6 -5 -5 -5 -5 -5 -5 -5 -4 -4 -3 -3 -3 -3 -2 -2 -1 ------- Run | Scr Mat Min Exi Min Mat Fac Low Low Zio Pro Fac Gar Fac Gar Fac Gar Ext Cet Arc Hub Gar Fac Gar Res Gar Res Gar Res Gar Acc Robot Analysis Total . | . . . . . . . . . . . . . . . . . . . . . . . . . . . . . . . Derelict Logs Recovered 7 | . . . . 1 . . 1 2 . 3 . . . . . . . . . . . . . . . . . . . . Drone Launches 59 | . . . . . 2 . . . . . 15 4 . . . . . . . . . . . . 5 . . 5 . 28 Drone Recoveries 22 | . . . . . 1 . . . . . . 2 . . . . . . . . . . . . 5 . . 4 . 10 Exploration | -11 -10 -10 -10 -9 -8 -7 -7 -7 -7 -6 -6 -6 -6 -6 -5 -5 -5 -5 -5 -5 -5 -4 -4 -3 -3 -3 -3 -2 -2 -1 ------------- Run | Scr Mat Min Exi Min Mat Fac Low Low Zio Pro Fac Gar Fac Gar Fac Gar Ext Cet Arc Hub Gar Fac Gar Res Gar Res Gar Res Gar Acc Turns Passed 28621 | . 161 379 378 122 845 1639 606 774 2093 577 1351 2137 566 1661 325 1333 975 486 198 238 2299 575 1866 775 2180 787 1650 1037 389 219 Spaces Moved 15223 | 1 135 255 311 99 421 738 363 417 1043 277 554 924 292 806 201 767 644 289 143 169 1231 371 1021 448 1018 389 884 510 196 306 Core 269 | . . . . . . . . . . . 2 . . . . . . 1 . . 17 . . . 9 . . 3 64 173 Treads 3363 | . . . . . 129 251 41 269 231 . 6 . . . . . . . . . . . . . 820 389 884 339 4 . Legs 3795 | 1 25 30 . . . . . . 812 277 294 886 292 806 93 . . . . . . . . . . . . 151 128 . Wheels 7663 | . 110 225 311 99 292 487 322 148 . . 252 38 . . 108 767 644 288 143 169 1214 371 1021 448 189 . . 17 . . Hover . | . . . . . . . . . . . . . . . . . . . . . . . . . . . . . . . Flight 133 | . . . . . . . . . . . . . . . . . . . . . . . . . . . . . . 133 Fastest Speed 40 | 120 80 100 120 120 130 105 110 150 170 170 120 130 150 150 110 110 115 115 115 115 115 120 120 120 120 152 165 110 50 40 Average Speed 149 | 120 89 129 120 120 159 147 146 168 195 192 159 176 153 164 132 118 115 124 115 119 149 120 129 137 177 158 165 159 121 57 Slowest Speed 2050 | 120 120 240 120 120 230 210 200 205 200 200 1350 210 180 210 150 130 115 1800 115 125 2050 130 150 140 1350 205 165 1350 190 250 Overloaded Moves . | . . . . . . . . . . . . . . . . . . . . . . . . . . . . . . . Propulsion Burnouts . | . . . . . . . . . . . . . . . . . . . . . . . . . . . . . . . Robots Hopped . | . . . . . . . . . . . . . . . . . . . . . . . . . . . . . . . Cave-ins Triggered 1 | . . . . . . . . . . . . . . . . . . . . . . . . . 1 . . . . . Exploration Rate (%) 51 | 2 36 49 61 30 54 25 65 60 88 49 56 92 10 79 6 89 74 84 87 25 98 9 95 16 81 12 91 17 37 16 Regions Visited 30 Branch Regions 11 Pre-discovered Areas 6 | . . . 1 . . . 1 . 2 1 . . . . . . 1 . . . . . . . . . . . . . Known Exits Taken 18 | . 1 . . . 1 1 1 1 1 1 1 . 1 . 1 . 1 1 1 1 . 1 . 1 . 1 . 1 . . Unknown Exits Taken 4 | 1 . 1 1 1 . . . . . . . . . . . . . . . . . . . . . . . . . . Scrap Searched 9 | . . 1 . . . . 2 3 2 1 . . . . . . . . . . . . . . . . . . . . Spaces Dug 160 | . . . . . 12 26 . . . . 30 . 1 . 5 . . . . . 38 . 3 10 13 9 5 6 2 . Terrain Destroyed 937 | . 21 15 . . 20 133 41 48 . 77 30 2 1 8 5 2 1 46 . 190 204 1 39 11 19 9 5 6 3 . Melee 103 | . . . . . 12 15 . . . . 30 . 1 . 5 . . . . . . . . 10 8 9 5 6 2 . Projectile 40 | . . . . . . . . . . . . . . . . . 1 4 . . . 1 21 1 11 . . . 1 . AOE 794 | . 21 15 . . 8 118 41 48 . 77 . 2 . 8 . 2 . 42 . 190 204 . 18 . . . . . . . Terrain Rammed . | . . . . . . . . . . . . . . . . . . . . . . . . . . . . . . . Walls Destroyed . | . . . . . . . . . . . . . . . . . . . . . . . . . . . . . . . Machines Disabled . | . . . . . . . . . . . . . . . . . . . . . . . . . . . . . . . Actions | -11 -10 -10 -10 -9 -8 -7 -7 -7 -7 -6 -6 -6 -6 -6 -5 -5 -5 -5 -5 -5 -5 -4 -4 -3 -3 -3 -3 -2 -2 -1 --------- Run | Scr Mat Min Exi Min Mat Fac Low Low Zio Pro Fac Gar Fac Gar Fac Gar Ext Cet Arc Hub Gar Fac Gar Res Gar Res Gar Res Gar Acc Total 19695 | . 159 287 316 102 557 1178 425 467 1097 305 910 1327 402 1080 248 1094 835 386 174 195 1528 481 1421 567 1272 527 1019 676 313 347 Wait 1935 | . 1 3 . 2 60 282 42 15 3 9 227 201 85 158 13 142 60 31 12 5 63 53 166 55 73 51 29 24 53 17 Move 15195 | . 134 254 310 98 420 737 362 416 1042 276 553 923 291 805 201 766 643 288 142 169 1230 370 1020 448 1016 388 883 509 195 306 Hop . | . . . . . . . . . . . . . . . . . . . . . . . . . . . . . . . Pick Up 247 | . 3 10 3 . 12 19 4 6 17 1 10 16 4 10 5 19 9 6 1 1 17 3 11 6 20 6 9 14 3 2 Fast Attach 187 | . 2 . . 1 8 7 . 1 10 . 13 15 1 7 3 6 2 14 . . 19 5 11 5 11 9 2 26 1 8 Attach 167 | . 1 1 . . 7 10 2 1 1 3 14 9 1 8 3 10 8 1 2 4 8 3 12 3 17 6 8 14 6 4 Detach 19 | . . . . . 1 . . . . . 3 3 . 1 . 2 . . . . 1 . 2 1 3 1 . . . 1 Swap 231 | . 4 4 1 . 6 15 4 10 4 4 5 16 3 11 3 16 5 4 1 3 19 7 20 7 16 8 10 15 10 . Drop 229 | . 5 4 2 1 13 8 1 6 19 1 3 14 5 10 8 11 8 19 3 1 14 7 11 5 4 14 1 19 7 5 Fire 985 | . 9 9 . . 13 62 8 11 . 11 34 82 11 56 7 54 70 23 13 12 139 31 112 27 65 24 38 45 19 . Melee 231 | . . . . . 16 32 2 . 1 . 48 2 1 4 5 28 6 . . . . . . 10 24 19 20 9 4 . Ram 4 | . . . . . . . . . . . . . . . . . . . . . . . . . . . . . . 4 Kick 1 | . . . . . . . . . . . . . . . . . . . . . . . . . . . . 1 . . Crush . | . . . . . . . . . . . . . . . . . . . . . . . . . . . . . . . Escape Stasis 253 | . . . . . . 6 . . . . . 45 . 10 . 40 24 . . . 18 . 56 . 23 . 16 . 15 . Rewire 7 | . . . . . . . . . . . . 1 . . . . . . . . . 2 . . . 1 3 . . . Trap 4 | . . 2 . . 1 . . 1 . . . . . . . . . . . . . . . . . . . . . . Miscellaneous . | . . . . . . . . . . . . . . . . . . . . . . . . . . . . . . . Route ------- -11/Scrapyard -10/Materials -10/Mines (discovered 2 exits: [*Mat] / *Exi) -10/Exiles -9/Mines -8/Materials (discovered 3 exits: *Fac x3) -7/Factory -7/Lower Caves -7/Lower Caves (discovered 2 exits: Fac / *Zio) -7/Zion -6/Proximity Caves -6/Factory (discovered 6 exits: *Fac x3 / Low x2 / Gar) -6/Garrison (discovered 3 exits: *Fac x3) -6/Factory -6/Garrison (discovered 3 exits: *Fac x3) -5/Factory (discovered 2 exits: Upp / Gar) -5/Garrison (discovered 3 exits: *Ext x3) -5/Extension (discovered 3 exits: *Fac x2 / *Cet) -5/Cetus (discovered 2 exits: *Fac / *Arc) -5/Archives (discovered 3 exits: *Fac / *Hub x2) -5/Hub_04(d) (discovered 2 exits: *Fac / Gar) -5/Garrison (discovered 3 exits: *Fac x3) -4/Factory (discovered 3 exits: Upp x2 / Gar) -4/Garrison (discovered 3 exits: *Res x3) -3/Research -3/Garrison (discovered 3 exits: *Res x3) -3/Research -3/Garrison (discovered 3 exits: *Res x3) -2/Research -2/Garrison -1/Access History --------- Turn | Location | Event 1 | -11/Scrapyard | Discovered new exit (range 0) 1 | -11/Scrapyard | Entered Materials 34 | -10/Materials | Identified exit to Mines 162 | -10/Materials | Entered Mines 291 | -10/Mines | Found the Drone Emporium 298 | -10/Mines | Found Prototype Device 309 | -10/Mines | Build established: Mutant 371 | -10/Mines | Found a hidden stash of uninstalled traps 431 | -10/Mines | Discovered new exit (range 3) 537 | -10/Mines | Deemed a non-threat by the Exiles lab entrance 537 | -10/Mines | Discovered new exit (range 5) 541 | -10/Mines | Entered Exiles 575 | -10/Exiles | Met 8R-AWN 593 | -10/Exiles | Met EX-HEX 647 | -10/Exiles | Learned location of Zion (-7) 666 | -10/Exiles | Met EX-BIN 683 | -10/Exiles | Aligned with FarCom system 684 | -10/Exiles | Given EX-Vault access code 712 | -10/Exiles | Opened EX-Vault 773 | -10/Exiles | Found Longsword +1 800 | -10/Exiles | Warned to stay clear of 0b10 Research branches 833 | -10/Exiles | Met EX-DEC 903 | -10/Exiles | Discovered new exit (range 14) 919 | -10/Exiles | Left Exiles lab with Longsword +1 919 | -10/Exiles | Entered Mines 981 | -9/Mines | Learned location of 1 exit from Materials 1026 | -9/Mines | Discovered new exit (range 7) 1034 | -9/Mines | Received a Rocket Launcher from a helpful Derelict 1041 | -9/Mines | Entered Materials 1041 | -8/Materials | Evolved 4 slots: Utility x4 1041 | -8/Materials | Identified Decoy Drone Bay 1042 | -8/Materials | Identified exit to Factory 1308 | -8/Materials | Discovered exit to Factory (range 52) 1886 | -8/Materials | Entered Factory 1886 | -7/Factory | Evolved 2 slots: Utility x2 2280 | -7/Factory | Build established: Hacker-Mutant 3090 | -7/Factory | Lost 3 parts (1n2w) 3200 | -7/Factory | Discovered new exit (range 14) 3249 | -7/Factory | Identified exit to Lower Caves 3525 | -7/Factory | Entered Lower Caves 3600 | -7/Lower Caves | Learned Research trap positions 3600 | -7/Lower Caves | Learned Research security intel 3600 | -7/Lower Caves | Learned Extension garrison access intel 3684 | -7/Lower Caves | Encountered a Warlord checkpoint 3966 | -7/Lower Caves | Learned 4 Factory zone layouts 4107 | -7/Lower Caves | Discovered new exit (range 9) 4117 | -7/Lower Caves | Identified exit to Lower Caves 4131 | -7/Lower Caves | Entered another Lower Caves area 4132 | -7/Lower Caves | Identified exit to Factory 4199 | -7/Lower Caves | Attracted the attention of an 0b10 checkpoint 4215 | -7/Lower Caves | Build established: Hacker-Skirmisher 4829 | -7/Lower Caves | Discovered new exit (range 21) 4860 | -7/Lower Caves | Learned Factory interactive machine intel 4903 | -7/Lower Caves | Identified exit to Zion 4905 | -7/Lower Caves | Entered Zion 4955 | -7/Zion | Acquired unknown access codes intercepted by a Zionite 4998 | -7/Zion | Discovered new exit (range 15) 5016 | -7/Zion | Build established: Hacker-Mutant 5231 | -7/Zion | System corruption cleaned by Quarantine Array 5342 | -7/Zion | Found CR-A16's Pointy Stick 5362 | -7/Zion | Build established: Hacker-Assassin 5591 | -7/Zion | Learned location of Recycling (-7) 5737 | -7/Zion | Learned location of Warlord (-5) 5770 | -7/Zion | Found Prototype Processor 5770 | -7/Zion | Identified Exp. Core Analyzer 5787 | -7/Zion | Found Prototype Hackware 5787 | -7/Zion | Identified Exp. System Shield 5803 | -7/Zion | Found Prototype Processor 5803 | -7/Zion | Identified Exp. Armor Integrity Analyzer 5809 | -7/Zion | Found Prototype Processor 5809 | -7/Zion | Identified Exp. Signal Interpreter 6037 | -7/Zion | Found Prototype Device 6037 | -7/Zion | Identified Mobile Refinery Mk. CCLXVII 6293 | -7/Zion | Found Unknown Hackware 6303 | -7/Zion | Found Unknown Hackware 6310 | -7/Zion | Found Unknown Hackware 6399 | -7/Zion | Rebuked by Imprinter 6557 | -7/Zion | Given the Hacking Drone Bay 6558 | -7/Zion | Found Prototype Device 6559 | -7/Zion | Identified Hacking Drone Bay 6996 | -7/Zion | Identified exit to Proximity Caves 6998 | -7/Zion | Entered Proximity Caves 7028 | -6/Proximity Caves | Learned 4 Factory zone layouts 7448 | -6/Proximity Caves | Lost 3 parts (1u2w) 7575 | -6/Proximity Caves | Entered Factory 7575 | -6/Factory | Evolved 2 slots: Propulsion x1, Utility x1 7576 | -6/Factory | Identified exit to Factory 7577 | -6/Factory | Identified exit to Lower Caves 7578 | -6/Factory | Loaded intel: 46 interactive machine locations 7786 | -6/Factory | Build established: Hauler-Assassin 8264 | -6/Factory | Build established: Hauler-Mutant 8493 | -6/Factory | Core integrity fell below 50% 8519 | -6/Factory | Discovered exit to Factory (range 39) 8527 | -6/Factory | Lost 17 parts (2p5n6u4w) 8920 | -6/Factory | Identified exit to Garrison 8925 | -6/Factory | Spotted B-75 Beast 8926 | -6/Factory | Entered Garrison 8996 | -6/Garrison | Triggered checkpoint 9092 | -6/Garrison | Lost 3 parts (2u1w) 9265 | -6/Garrison | Discovered new exit (range 14) 9290 | -6/Garrison | Identified exit to Factory 9303 | -6/Garrison | Installed Relay Interface Framework 9427 | -6/Garrison | Triggered checkpoint 9527 | -6/Garrison | Discovered exit to Factory (range 13) 9598 | -6/Garrison | Triggered checkpoint 9615 | -6/Garrison | Build established: Bothacker-Mutant 9656 | -6/Garrison | Triggered checkpoint 9854 | -6/Garrison | Triggered checkpoint 9964 | -6/Garrison | Triggered checkpoint 9982 | -6/Garrison | Discovered exit to Factory (range 15) 10422 | -6/Garrison | Triggered checkpoint 10454 | -6/Garrison | Core integrity fell below 20% 10500 | -6/Garrison | Garrison Relay disabled 10738 | -6/Garrison | Triggered checkpoint 10780 | -6/Garrison | Garrison Relay disabled 10980 | -6/Garrison | Garrison Relay disabled 11063 | -6/Garrison | Entered Factory 11063 | -6/Factory | Accompanied by 1 ally 11323 | -6/Factory | Fabricated Cloaking Device (x1) 11338 | -6/Factory | Identified Relay Coupler [Programmer] (x3) 11617 | -6/Factory | Garrison activated, responded to threat 11623 | -6/Factory | Identified exit to Garrison 11629 | -6/Factory | Entered Garrison 11719 | -6/Garrison | Triggered checkpoint 11746 | -6/Garrison | Triggered checkpoint 11886 | -6/Garrison | Triggered checkpoint 11944 | -6/Garrison | Discovered exit to Factory (range 10) 12003 | -6/Garrison | Triggered checkpoint 12118 | -6/Garrison | Triggered checkpoint 12177 | -6/Garrison | Triggered checkpoint 12240 | -6/Garrison | Triggered checkpoint 12293 | -6/Garrison | Garrison Relay disabled 12442 | -6/Garrison | Discovered exit to Factory (range 13) 12479 | -6/Garrison | Expanded RIF knowledge: Program Shield 12622 | -6/Garrison | Discovered exit to Factory (range 9) 12664 | -6/Garrison | Triggered checkpoint 12901 | -6/Garrison | Garrison Relay disabled 12971 | -6/Garrison | Build established: Hauler-Mutant 13290 | -6/Garrison | Entered Factory 13290 | -5/Factory | Evolved 2 slots: Utility x2 13291 | -5/Factory | Identified exit to Upper Caves 13478 | -5/Factory | Allied Derelicts emerged from ambush trap array 13526 | -5/Factory | Garrison activated, responded to threat 13602 | -5/Factory | Identified exit to Garrison 13615 | -5/Factory | Entered Garrison 13615 | -5/Garrison | Accompanied by 2 allies 13621 | -5/Garrison | Expanded RIF knowledge: Patrol Navigation 13651 | -5/Garrison | Triggered checkpoint 13679 | -5/Garrison | Build established: Bothacker-Mutant 13686 | -5/Garrison | Garrison Relay disabled 13744 | -5/Garrison | Triggered checkpoint 13747 | -5/Garrison | Triggered checkpoint 13760 | -5/Garrison | Triggered checkpoint 13766 | -5/Garrison | Triggered checkpoint 13818 | -5/Garrison | Lost 3 parts (1p1n1w) 14058 | -5/Garrison | Triggered checkpoint 14142 | -5/Garrison | Garrison Relay disabled 14176 | -5/Garrison | Discovered new exit (range 14) 14354 | -5/Garrison | Discovered new exit (range 10) 14366 | -5/Garrison | Identified exit to Extension 14383 | -5/Garrison | Triggered checkpoint 14461 | -5/Garrison | Garrison Relay disabled 14596 | -5/Garrison | Triggered checkpoint 14617 | -5/Garrison | Garrison Relay disabled 14667 | -5/Garrison | Spotted B-75 Beast 14667 | -5/Garrison | Revealed the true nature of CR-A16's Pointy Stick 14670 | -5/Garrison | Destroyed B-75 Beast 14730 | -5/Garrison | Discovered exit to Extension (range 16) 14948 | -5/Garrison | Entered Extension 14948 | -5/Extension | Accompanied by 9 allies 15139 | -5/Extension | Rescued a captive Derelict 15303 | -5/Extension | Rescued a captive Derelict 15304 | -5/Extension | Rescued a captive Derelict 15401 | -5/Extension | Rescued a captive Derelict 15449 | -5/Extension | Spotted B-75 Beast 15453 | -5/Extension | Rescued A7 15463 | -5/Extension | Spotted B-75 Beast 15475 | -5/Extension | Allies destroyed B-75 Beast 15494 | -5/Extension | Allies destroyed B-75 Beast 15507 | -5/Extension | Discovered new exit (range 4) 15510 | -5/Extension | Identified exit to Factory 15778 | -5/Extension | Identified exit to Cetus 15892 | -5/Extension | Discovered exit to Factory (range 10) 15923 | -5/Extension | Entered Cetus 15923 | -5/Cetus | Accompanied by 9 allies (A7) 15928 | -5/Cetus | Acquired a Cetus Manufacturing Module code from A7 15939 | -5/Cetus | Spotted Cetus Guard 15939 | -5/Cetus | Spotted Cetus Guard 15941 | -5/Cetus | Spotted Cetus Guard 15945 | -5/Cetus | Spotted Cetus Guard 15950 | -5/Cetus | Allies destroyed Cetus Guard 15952 | -5/Cetus | Destroyed Cetus Guard 15961 | -5/Cetus | Allies destroyed Cetus Guard 15962 | -5/Cetus | Destroyed Cetus Guard 16096 | -5/Cetus | Started Cetus Manufacturing Module 16121 | -5/Cetus | Manufactured an Enhanced Grunt 16146 | -5/Cetus | Manufactured an Enhanced Grunt 16158 | -5/Cetus | Escorted A7 to Cetus Mainframe 16171 | -5/Cetus | Manufactured an Enhanced Grunt 16193 | -5/Cetus | Discovered new exit (range 15) 16196 | -5/Cetus | Manufactured an Enhanced Grunt 16215 | -5/Cetus | Spotted Cetus Guard 16215 | -5/Cetus | Spotted Cetus Guard 16221 | -5/Cetus | Manufactured an Enhanced Grunt 16230 | -5/Cetus | Spotted Cetus Guard 16241 | -5/Cetus | Spotted Cetus Guard 16249 | -5/Cetus | Allies destroyed Cetus Guard 16255 | -5/Cetus | Destroyed Cetus Guard 16299 | -5/Cetus | Found Prototype Device 16299 | -5/Cetus | Identified Exp. Thermal Shield 16311 | -5/Cetus | Discovered exit to Factory (range 15) 16318 | -5/Cetus | Met Revision 17 16384 | -5/Cetus | Identified exit to Archives 16409 | -5/Cetus | Entered Archives 16409 | -5/Archives | Accompanied by 3 allies (A7) 16414 | -5/Archives | Received a hacking code to weaken MAIN.C 16455 | -5/Archives | Unable to access archive contents 16468 | -5/Archives | Unable to access archive contents 16470 | -5/Archives | Discovered new exit (range 16) 16481 | -5/Archives | Unable to access archive contents 16484 | -5/Archives | Discovered new exit (range 15) 16492 | -5/Archives | Unable to access archive contents 16494 | -5/Archives | Discovered exit to Factory (range 15) 16557 | -5/Archives | Identified exit to Hub_04(d) 16607 | -5/Archives | Entered Hub_04(d) 16607 | -5/Hub_04(d) | Accompanied by 6 allies 16664 | -5/Hub_04(d) | Identified exit to Garrison 16766 | -5/Hub_04(d) | Garrison activated, responded to threat 16772 | -5/Hub_04(d) | Network Hub disabled 16774 | -5/Hub_04(d) | Discovered exit to Factory (range 9) 16799 | -5/Hub_04(d) | Spotted Lightning 16801 | -5/Hub_04(d) | Spotted Lightning 16802 | -5/Hub_04(d) | Spotted Lightning 16815 | -5/Hub_04(d) | Spotted Lightning 16845 | -5/Hub_04(d) | Entered Garrison 16918 | -5/Garrison | Triggered checkpoint 16944 | -5/Garrison | Triggered checkpoint 17099 | -5/Garrison | Discovered exit to Factory (range 15) 17150 | -5/Garrison | Expanded RIF knowledge: Signal Jamming 17201 | -5/Garrison | Triggered checkpoint 17231 | -5/Garrison | Garrison Relay disabled 17454 | -5/Garrison | Build established: Botlord-Mutant 17489 | -5/Garrison | Triggered checkpoint 17629 | -5/Garrison | Discovered exit to Factory (range 13) 17666 | -5/Garrison | Triggered checkpoint 17687 | -5/Garrison | Garrison Relay disabled 17892 | -5/Garrison | Triggered checkpoint 17934 | -5/Garrison | Triggered checkpoint 17969 | -5/Garrison | Core integrity fell below 50% 18031 | -5/Garrison | Lost 8 parts (2n5u1w) 18422 | -5/Garrison | Discovered exit to Factory (range 9) 18444 | -5/Garrison | Triggered checkpoint 18509 | -5/Garrison | Garrison Relay disabled 18858 | -5/Garrison | Phase Generator disabled 19144 | -5/Garrison | Entered Factory 19144 | -4/Factory | Evolved 2 slots: Utility x2 19153 | -4/Factory | Found Prototype Processor 19153 | -4/Factory | Identified Exp. Targeting Computer 19299 | -4/Factory | Identified exit to Upper Caves 19352 | -4/Factory | Spotted B-86 Titan 19540 | -4/Factory | Identified exit to Garrison 19682 | -4/Factory | First assault squad dispatched 19719 | -4/Factory | Entered Garrison 19719 | -4/Garrison | Accompanied by 3 allies 19782 | -4/Garrison | Triggered checkpoint 19816 | -4/Garrison | Triggered checkpoint 19849 | -4/Garrison | Garrison Relay disabled 19920 | -4/Garrison | Spotted B-86 Titan 20016 | -4/Garrison | Triggered checkpoint 20054 | -4/Garrison | Triggered checkpoint 20060 | -4/Garrison | Triggered checkpoint 20062 | -4/Garrison | Triggered checkpoint 20118 | -4/Garrison | Destroyed B-86 Titan 20136 | -4/Garrison | Lost 8 parts (2n2u4w) 20366 | -4/Garrison | Discovered new exit (range 8) 20531 | -4/Garrison | Discovered new exit (range 5) 20540 | -4/Garrison | Identified exit to Research 20549 | -4/Garrison | Expanded RIF knowledge: Autooverride 20690 | -4/Garrison | Discovered exit to Research (range 10) 20832 | -4/Garrison | Triggered checkpoint 20959 | -4/Garrison | Garrison Relay disabled 21090 | -4/Garrison | Triggered checkpoint 21203 | -4/Garrison | Garrison Relay disabled 21298 | -4/Garrison | Triggered checkpoint 21332 | -4/Garrison | Garrison Relay disabled 21585 | -4/Garrison | Entered Research 21585 | -3/Research | Accompanied by 1 ally 21585 | -3/Research | Evolved 2 slots: Utility x2 21586 | -3/Research | Loaded intel: 73 trap records 21785 | -3/Research | Revision forces began assault on 0b10 21816 | -3/Research | Met up with Revision 17++ 21999 | -3/Research | Spotted B-86 Titan 22000 | -3/Research | Assimilated Titan 8a with formatsys_high 22179 | -3/Research | Repaired Imp. Remote Datajack 22285 | -3/Research | Research terminal network offline 22356 | -3/Research | Identified exit to Garrison 22360 | -3/Research | Entered Garrison 22360 | -3/Garrison | Accompanied by 2 allies 22524 | -3/Garrison | Triggered checkpoint 22571 | -3/Garrison | Garrison Relay disabled 22648 | -3/Garrison | Spotted B-86 Titan 22656 | -3/Garrison | Triggered checkpoint 22690 | -3/Garrison | Triggered checkpoint 22771 | -3/Garrison | Lost 8 parts (1p2n3u2w) 22832 | -3/Garrison | Lost 6 parts (1p1n1u3w) 22965 | -3/Garrison | Destroyed B-86 Titan 23246 | -3/Garrison | Discovered new exit (range 13) 23423 | -3/Garrison | Garrison Relay disabled 23438 | -3/Garrison | Crushed by falling debris 23440 | -3/Garrison | Triggered checkpoint 23469 | -3/Garrison | Lost 3 parts (1n2u) 23727 | -3/Garrison | Triggered checkpoint 23760 | -3/Garrison | Garrison Relay disabled 23807 | -3/Garrison | Discovered new exit (range 15) 23808 | -3/Garrison | Triggered checkpoint 23858 | -3/Garrison | Expanded RIF knowledge: Zone Cloak 23988 | -3/Garrison | Discovered new exit (range 9) 24014 | -3/Garrison | Triggered checkpoint 24068 | -3/Garrison | Garrison Relay disabled 24540 | -3/Garrison | Entered Research 24540 | -3/Research | Accompanied by 2 allies 25111 | -3/Research | Garrison activated, responded to threat 25240 | -3/Research | Research terminal network offline 25294 | -3/Research | Identified exit to Garrison 25327 | -3/Research | Entered Garrison 25478 | -3/Garrison | Triggered checkpoint 25615 | -3/Garrison | Spotted B-86 Titan 25616 | -3/Garrison | Master 8b assimilated hostile B-86 Titan 25626 | -3/Garrison | Triggered checkpoint 25674 | -3/Garrison | Garrison Relay disabled 25818 | -3/Garrison | Triggered checkpoint 25903 | -3/Garrison | Discovered new exit (range 9) 25974 | -3/Garrison | Triggered checkpoint 26015 | -3/Garrison | Garrison Relay disabled 26201 | -3/Garrison | Discovered new exit (range 9) 26246 | -3/Garrison | Triggered checkpoint 26276 | -3/Garrison | Garrison Relay disabled 26398 | -3/Garrison | Triggered checkpoint 26459 | -3/Garrison | Discovered new exit (range 9) 26484 | -3/Garrison | Expanded RIF knowledge: Autoassimilate 26512 | -3/Garrison | Triggered checkpoint 26586 | -3/Garrison | Core integrity fell below 50% 26720 | -3/Garrison | Garrison Relay disabled 26977 | -3/Garrison | Entered Research 26977 | -2/Research | Accompanied by 5 allies 26977 | -2/Research | Evolved 2 slots: Utility x2 27627 | -2/Research | Found Prototype Processor 27627 | -2/Research | Identified Spectral Analyzer 27710 | -2/Research | System corruption reached 10% 27756 | -2/Research | Lost 17 parts (1p1n10u5w) 28012 | -2/Research | Identified exit to Garrison 28014 | -2/Research | Entered Garrison 28112 | -2/Garrison | Triggered checkpoint 28195 | -2/Garrison | Garrison Relay disabled 28278 | -2/Garrison | Triggered checkpoint 28299 | -2/Garrison | Spotted B-90 Cyclops 28348 | -2/Garrison | Core integrity fell below 50% 28376 | -2/Garrison | Core integrity fell below 20% 28398 | -2/Garrison | Discovered new exit (range 9) 28403 | -2/Garrison | Entered Access 28403 | -1/Access | Evolved 2 slots: Propulsion x1, Utility x1 28431 | -1/Access | Lost 11 parts (1n8u2w) 28578 | -1/Access | Core integrity fell below 50% 28607 | -1/Access | Core integrity fell below 20% 28619 | -1/Access | System corruption reached 10% 28622 | -1/Access | Destroyed by S-43 Plague with Heavy Machine Gun Last Messages --------------- 28592_ Spectral Interrupter explodes. 28592_ Door malfunctions. 28594_ Maneuvering Thrusters destroyed. 28598_ P-80 Master resets P-80 Master, system corruption cleaned. 28600_ CS0IZ3G I:#IJ :K4M0 5&EPD: 28605_ Penetrated by Slug. 28605_ Slug penetrates Wall. 28607_ Slammed into P-80 Master. 28607_ Imp. System Shield destroyed. 28613_ Relay Coupler [Specialist] destroyed. 28615_ Slammed into A-15 Conveyor. 28616_ QJ =|H2SQGXKX >%ME%V8D&I6CTUSH7JR 28617_ Slammed into A-15 Conveyor. 28618_ Relay Coupler [NC] destroyed. 28618_ System corrupted by crushing effect (+2). 28619_ Penetrated by Slug. [Achievement: 20k Club] [Achievement: 30k Club] [Achievement: 40k Club] [Achievement: I Think I Know What's Going On] Map ----- +----------------------------------------------------+ | ??????????????????????????????????? | | ??????????????????????????????????? | | ??????????????????????????????????? | | ??????????????????????????????????? | | ??????????????????????????????????? | | ??????????????????????????????????? | | ??????????????????????????????????? | | ??????????????????????????????????? | | ??????????????????????????????????? | | ??????????????????????????????????? | | ??????????????????????????????????? | | ??????????????????????????????????? | | ??????????????????????????????????? | | ??????????????????????????????????? | | ??????????????????????????????????? | | ??????????????????????????????????? | | ??????????????????????????????????? | | ????????????Y?????????????????????? | | ??????????????????????????????????? | | ??????#######?????????????????????? | | ??????# #?????????????????????? | | ??????# ##????????????????????? | | ??????# ?????????????????????? | | ??????# #????????##???????????? | | ??????# #?????? ???????????? | | ?####### @#????? ??????????? | | # # #??? ???????????? | | # + ## ???????????? | | # " + h + ???????????? | | # "" #ssh## ???????????? | | # "" ### #??? """"T""???????????? | | # "" ???#s#??????"???????????????? | | # "" ???# #????????????????####### | | # ""????# #????????????????# | | # ""????#p#????????????????# | | #? "?????# #????????######### | | ? ? ?????#p#????????# / | | ?????????#A#????????# # | | ?????????# #????????# # | | ?????????#p#????????# / | | ?#########/###??????# # | | # s #??????# # | | # ######## # | | # "" s # # | | # "" # # | | # """""" # ####### | | # """""" / #?????? | | # "" # #?????? | | # "" # #?????? | | # # #?????? | +----------------------------------------------------+ Best States ------------- Heat Dissipation 62 Coolant Potential 65 Energy Generation 25 Energy Capacity 770 Matter Stores 450 Matter Capacity 450 Sight Range 22 Robot Scan Range 20 Terrain Scan Density 10 Cloak Strength 2 Armor Coverage 1200 Resistance: TH 30 Resistance: EM 15 Core Shielding 30 Phase Shifting 15 Evasion (%) 62 Targeting Accuracy 18 Target Analysis 8 Core Analysis 15 Armor Integrity Analysis 66 Recoil Reduction 3 Kinecelleration 40 Offensive Hacking 14 Defensive Hacking 22 Relay Coupler Types 164 Relay Coupler Value 7 Item Schematics ----------------- Lgt. Fission Core | -8/Materials | Scanalyzed Hcp. Storage Unit | -8/Materials | Scanalyzed Adv. Signal Interpreter | -7/Factory | Scanalyzed Robot Schematics ------------------ G-34 Mercenary | -5/Extension | Hacked Fabricated ------------ Cloaking Device | x1 | -6/Factory | Preloaded Alien Tech Used ----------------- None Achievements -------------- 20k Club 30k Club 40k Club Beloved Collateral Damage Dramatic Entrance Factory Defaults Generalissimo I Think I Know What's Going On Infiltrator It Was An Accident, I Swear Main Advantage No Signal Ooh, Shiny! Prison Break Project G-00 Prolific Hacker Pwned Revising The Future Revolutionary Research Tank Challenges ------------ None Game ------ Seed GaussZioniteMagmablaster Manual? 0 Play Time 07:08:33 Cumulative 83.0 hours Start 2020.10.21 @ 22:35:33 End 2020.10.22 @ 23:42:36 Sessions 3 Manual Loads 0 Difficulty Rogue Special Mode None Game No. 92 Rogue 92 Adventurer 0 Explorer 0 Win Type - Total 0 Types 0/0/0/0/0/0/0/0/0 Lore% 50 Gallery% 56 Achievement% 44 Wizard Run 0 Options --------- ASCII 0 Keyboard 0 Movement Mouse Keybinds 0 Fullscreen 1 Font 24/Smallcaps Map View 76x50 Tactical HUD 1 Map Filters NONE Filters NONE Steam 1 RUN: c31e0b16-7825-4e3b-932f-897678c0d8c1